bitfinex/quotes_SOLUSD_20251208
["timestamp","ask_amount","ask_price","bid_price","bid_amount"]
[1765153984306,9.79650369,132.33,132.31,0.69]
[1765153984512,7.55688586,132.33,132.31,0.69]
[1765153984890,11.7582894,132.33,132.29,8.24892387]
[1765153985401,11.7582894,132.33,132.3,0.69]
[1765153986218,11.0482894,132.33,132.3,0.69]
[1765153986891,11.75784681,132.34,132.3,8.2483595]
[1765153987712,4.20140354,132.33,132.3,0.69]
[1765153987912,4.20140354,132.33,132.29,7.55891739]
[1765153988124,3.49140354,132.33,132.31,0.69]
[1765153988325,11.75784681,132.34,132.31,0.69]
[1765153989426,3.49140354,132.33,132.29,7.55890769]
[1765153989628,4.20140354,132.33,132.3,0.69]
[1765153989927,3.49140354,132.33,132.3,0.69]
[1765153990120,11.75784681,132.34,132.3,0.69]
[1765153990823,4.20140354,132.33,132.28,62.2]
[1765153991030,3.49140354,132.3,132.27,9.03]
[1765153991318,4.20140354,132.3,132.27,9.03]
[1765153991543,11.76055389,132.29,132.27,8.34]
[1765153991699,3.49140354,132.31,132.28,0.69]
[1765153991906,4.20140354,132.32,132.28,0.69]
[1765153992413,4.20140354,132.31,132.28,0.69]
[1765153992920,3.49140354,132.31,132.28,0.69]
[1765153993122,11.75847919,132.33,132.28,8.24940932]
[1765153993513,11.75847919,132.33,132.29,0.69]
[1765153994310,0.71,132.33,132.29,11.74036872]
[1765153994503,4.20140354,132.33,132.29,8.24896518]
[1765153994804,4.20140354,132.33,132.3,0.69]
[1765153995001,3.49140354,132.33,132.3,0.69]
[1765153995429,0.71,132.33,132.3,0.69]
[1765153995612,11.75769793,132.34,132.3,0.69]
[1765153996232,0.71,132.34,132.31,7.5580077]
[1765153996416,8.26590054,132.35,132.31,7.5580077]
[1765153996730,11.04677225,132.36,132.32,0.69]
[1765153996941,0.71,132.35,132.32,0.69]
[1765153997635,8.26575394,132.35,132.32,0.69]
[1765153998828,7.55575394,132.35,132.32,0.69]
[1765153999046,8.34,132.37,132.32,11.7385937]
[1765153999338,0.71,132.36,132.32,8.24719016]
[1765153999536,0.71,132.36,132.33,0.69]
[1765153999920,0.71,132.36,132.32,7.55719016]
[1765153999921,4.20140354,132.36,132.32,7.55719016]
[1765154000116,11.7567933,132.36,132.31,9.03]
[1765154000322,0.71,132.35,132.32,0.69]
[1765154001628,11.7267933,132.36,132.32,0.69]
[1765154002021,0.68,132.35,132.32,0.69]
[1765154002632,3.49140354,132.34,132.3,0.65]
[1765154002821,0.68,132.35,132.29,3.49140354]
[1765154003017,0.68,132.35,132.31,0.65]
[1765154003428,4.17140354,132.35,132.31,0.65]
[1765154003921,7.55538976,132.36,132.31,11.69935481]
[1765154004126,7.55538976,132.36,132.31,20.03935481]
[1765154004338,7.55538976,132.36,132.32,0.65]
[1765154004631,7.55538976,132.36,132.32,4.14140354]
[1765154004928,16.57475561,132.37,132.32,4.14140354]
[1765154005140,16.57475561,132.37,132.33,0.65]
[1765154005964,8.23475561,132.37,132.33,0.65]
[1765154006237,8.23475561,132.37,132.33,8.20676059]
[1765154006442,7.55412559,132.38,132.33,11.69816413]
[1765154006743,7.55412559,132.38,132.34,0.65]
[1765154007043,0.68,132.37,132.34,0.65]
[1765154007339,8.23412559,132.38,132.34,0.65]
[1765154007529,8.23412559,132.38,132.34,8.20613921]
[1765154007726,8.23412559,132.38,132.35,0.65]
[1765154009329,0.68,132.38,132.35,8.20572]
[1765154010843,0.68,132.38,132.35,0.65]
[1765154011015,11.72449213,132.4,132.36,0.65]
[1765154011215,4.17140354,132.4,132.36,0.65]
[1765154011439,0.68,132.4,132.36,0.65]
[1765154012734,0.68,132.4,132.37,7.55458185]
[1765154012945,0.2,132.42,132.37,11.04598539]
[1765154013119,0.2,132.42,132.38,4.14140354]
[1765154013315,0.2,132.42,132.39,3.49140354]
[1765154013517,0.2,132.42,132.39,4.14140354]
[1765154013735,0.2,132.42,132.4,0.65]
[1765154013961,0.2,132.42,132.41,3.49140354]
[1765154014439,0.2,132.42,132.41,4.14140354]
[1765154014741,0.2,132.42,132.41,0.65]
[1765154015720,0.2,132.42,132.41,20.50364813]
[1765154016245,0.2,132.42,132.41,28.84364813]
[1765154016630,0.2,132.42,132.41,45.15251213]
[1765154017556,0.2,132.42,132.41,32.85116367]
[1765154018619,0.2,132.42,132.41,45.15251213]
[1765154021755,0.2,132.42,132.41,53.38141368]
[1765154022558,0.2,132.42,132.41,32.85116367]
[1765154025066,0.2,132.42,132.41,36.34256721]
[1765154026369,0.2,132.42,132.41,45.15251213]
[1765154028654,0.2,132.42,132.41,36.34256721]
[1765154028837,0.2,132.42,132.41,32.85116367]
[1765154029746,0.88,132.42,132.39,7.55336313]
[1765154030067,8.43173617,132.42,132.38,8.20366963]
[1765154030233,0.68,132.41,132.38,8.20366963]
[1765154030859,0.2,132.42,132.37,47.0260626]
[1765154031158,0.2,132.42,132.39,0.72]
[1765154031363,0.2,132.42,132.4,7.55246407]
[1765154031751,0.9,132.42,132.4,7.55246407]
[1765154032759,0.7,132.41,132.39,15.89341479]
[1765154032944,0.9,132.42,132.39,15.89341479]
[1765154033147,0.9,132.42,132.39,16.61341479]
[1765154036053,0.7,132.41,132.39,15.89341479]
[1765154036448,0.7,132.41,132.39,8.34]
[1765154036944,4.19140354,132.41,132.36,16.56183878]
[1765154037146,11.74425242,132.41,132.37,15.89447943]
[1765154037459,0.72,132.4,132.37,15.89447943]
[1765154037840,0.72,132.4,132.37,8.21447943]
[1765154038540,0.72,132.4,132.37,7.55447943]
[1765154039567,0.72,132.4,132.37,8.21447943]
[1765154040080,0.72,132.4,132.37,7.55447943]
[1765154040380,0.72,132.4,132.37,8.21447943]
[1765154040871,0.72,132.4,132.37,7.55447943]
[1765154041370,0.72,132.4,132.37,8.21447943]
[1765154041940,0.72,132.41,132.38,0.66]
[1765154042673,0.2,132.42,132.38,12.49140354]
[1765154043045,0.92,132.42,132.39,0.66]
[1765154044540,0.2,132.42,132.4,7.55287009]
[1765154044740,0.92,132.42,132.39,8.21329847]
[1765154044968,0.2,132.42,132.39,8.21329847]
[1765154045153,0.2,132.42,132.4,0.66]
[1765154046053,0.2,132.42,132.4,16.55242062]
[1765154047870,0.2,132.42,132.41,0.66]
[1765154048766,0.2,132.42,132.38,16.308864]
[1765154048767,10.70319685,132.42,132.38,16.308864]
[1765154048967,10.70319685,132.42,132.38,23.86281158]
[1765154049275,2.95123237,132.41,132.37,15.89437119]
[1765154049571,0.72,132.41,132.37,16.55437119]
[1765154049774,0.72,132.4,132.37,16.55437119]
[1765154050081,10.50401263,132.41,132.37,16.55437119]
[1765154050573,0.72,132.4,132.37,16.55437119]
[1765154054983,2.23123237,132.38,132.32,0.66]
[1765154055156,2.95123237,132.37,132.34,7.55616653]
[1765154055777,2.95123237,132.37,132.34,8.21616653]
[1765154056281,0.72,132.38,132.35,0.66]
[1765154056660,8.27250487,132.41,132.35,2.89123237]
[1765154056857,10.50373724,132.41,132.36,9.0]
[1765154057076,0.72,132.4,132.36,9.0]
[1765154057384,0.72,132.4,132.37,0.66]
[1765154057755,9.78373724,132.41,132.37,0.66]
[1765154057972,0.72,132.4,132.37,0.66]
[1765154059381,9.78373724,132.41,132.37,8.21439578]
[1765154059585,0.72,132.4,132.37,8.21439578]
[1765154061484,9.98316006,132.42,132.38,0.67]
[1765154061787,8.45192769,132.42,132.38,0.67]
[1765154061988,0.2,132.42,132.39,8.34]
[1765154062299,0.2,132.42,132.4,0.67]
[1765154063295,0.2,132.42,132.4,9.01]
[1765154063469,0.9,132.42,132.4,8.34]
[1765154063667,0.2,132.42,132.4,9.01]
[1765154064078,0.2,132.42,132.4,0.67]
[1765154064903,0.2,132.42,132.4,8.22281314]
[1765154065774,3.13123237,132.42,132.36,28.02004129]
[1765154066017,2.23123237,132.41,132.36,8.34]
[1765154066297,27.33117468,132.42,132.36,8.34]
[1765154066298,2.93123237,132.4,132.36,15.89503763]
[1765154066497,0.7,132.4,132.36,9.01]
[1765154066798,0.7,132.39,132.36,16.56501056]
[1765154067916,0.7,132.4,132.36,16.56501056]
[1765154068589,0.7,132.4,132.37,0.67]
[1765154069086,0.7,132.41,132.38,7.55401117]
[1765154069486,0.7,132.41,132.38,8.22401117]
[1765154070114,0.2,132.42,132.39,0.67]
[1765154070313,0.2,132.42,132.39,11.24123237]
[1765154070480,0.2,132.42,132.4,2.23123237]
[1765154070681,0.2,132.42,132.4,2.90123237]
[1765154070882,0.2,132.42,132.41,0.67]
[1765154071082,0.2,132.42,132.41,10.45353204]
[1765154071509,0.2,132.42,132.41,19.26347696]
[1765154072384,0.2,132.42,132.41,17.03224459]
[1765154072586,0.2,132.42,132.41,19.26347696]
[1765154073680,0.2,132.42,132.41,27.60347696]
[1765154076480,0.2,132.48,132.45,25.11880892]
[1765154076686,0.2,132.48,132.47,8.80994492]
[1765154077178,0.2,132.48,132.45,2.23123237]
[1765154077381,0.2,132.48,132.46,11.24123237]
[1765154077786,0.2,132.48,132.46,8.34]
[1765154078003,0.2,132.48,132.46,11.24123237]
[1765154078197,0.2,132.48,132.46,18.79017217]
[1765154079614,0.2,132.48,132.46,18.12017217]
[1765154079916,0.9,132.48,132.46,8.34]
[1765154080497,0.9,132.48,132.46,16.55941009]
[1765154080498,0.2,132.48,132.46,16.55941009]
[1765154080791,0.2,132.48,132.46,18.79064246]
[1765154080991,0.2,132.48,132.47,2.23123237]
[1765154081815,0.2,132.48,132.47,19.26005628]
[1765154082413,0.9,132.48,132.46,70.54]
[1765154082619,0.9,132.48,132.46,10.57123237]
[1765154082794,0.9,132.48,132.44,16.308864]
[1765154082795,0.7,132.47,132.45,8.34]
[1765154083821,0.7,132.47,132.41,37.76149837]
[1765154083822,0.7,132.47,132.41,18.88033676]
[1765154084021,10.48033475,132.47,132.42,8.34]
[1765154084411,0.7,132.46,132.42,8.34]
[1765154084598,2.93123237,132.46,132.42,8.34]
[1765154085015,0.7,132.45,132.42,8.34]
[1765154085829,0.7,132.45,132.42,15.89159318]
[1765154086119,2.43123237,132.48,132.42,18.79282555]
[1765154086326,0.7,132.47,132.43,0.67]
[1765154086724,0.7,132.47,132.43,2.90123237]
[1765154087106,0.7,132.47,132.43,0.67]
[1765154087706,0.7,132.47,132.42,37.00214891]
[1765154087908,2.93123237,132.47,132.43,7.55072765]
[1765154088414,2.93123237,132.47,132.43,16.36067257]
[1765154088622,0.7,132.47,132.43,19.26190494]
[1765154089129,8.24893688,132.47,132.43,7.55072765]
[1765154089301,7.54893688,132.47,132.43,9.78196002]
[1765154089621,0.2,132.48,132.44,2.90123237]
[1765154089835,0.7,132.47,132.45,8.34]
[1765154090127,0.7,132.47,132.45,15.88987504]
[1765154090731,0.7,132.47,132.45,8.34]
[1765154092000,0.7,132.47,132.45,15.88998374]
[1765154092222,0.87,132.48,132.45,16.60998374]
[1765154092421,0.87,132.48,132.46,2.23123237]
[1765154092606,0.67,132.47,132.46,2.23123237]
[1765154092809,0.67,132.47,132.45,18.12121611]
[1765154093605,0.2,132.48,132.46,2.95123237]
[1765154093808,0.2,132.48,132.47,11.04117729]
[1765154094124,0.2,132.48,132.47,11.76117729]
[1765154094327,0.2,132.48,132.47,18.84011136]
[1765154094523,0.2,132.48,132.47,18.12011136]
[1765154095223,0.2,132.48,132.47,18.84011136]
[1765154096616,0.2,132.48,132.47,27.65005628]
[1765154099427,0.1,132.51,132.5,25.11880892]
[1765154099640,0.1,132.51,132.5,98.59004129]
[1765154100718,0.1,132.51,132.5,115.06214058]
[1765154100923,0.1,132.53,132.51,8.80994492]
[1765154101225,0.1,132.53,132.52,11.74117729]
[1765154101429,0.1,132.53,132.52,20.08117729]
[1765154101633,0.1,132.53,132.52,11.74117729]
[1765154101929,0.1,132.53,132.52,20.08117729]
[1765154102133,0.76,132.53,132.5,0.5]
[1765154102430,0.76,132.53,132.51,2.23123237]
[1765154102733,0.76,132.53,132.5,16.35671349]
[1765154102734,0.1,132.53,132.52,2.23123237]
[1765154103416,0.1,132.53,132.52,11.74117729]
[1765154103938,0.1,132.53,132.52,28.05004129]
[1765154104813,0.1,132.53,132.52,36.84243573]
[1765154105708,0.2,132.55,132.54,16.308864]
[1765154105913,0.1,132.56,132.55,8.80994492]
[1765154106230,0.1,132.56,132.55,9.50994492]
[1765154106435,3.47759603,132.65,132.59,8.80994492]
[1765154106436,0.66,132.65,132.59,8.80994492]
[1765154106604,0.66,132.64,132.6,11.81759603]
[1765154106810,7.53977229,132.63,132.59,8.34]
[1765154107113,0.66,132.62,132.59,8.34]
[1765154107334,0.66,132.63,132.61,9.22002921]
[1765154107537,0.66,132.62,132.6,9.22002921]
[1765154107741,0.66,132.62,132.59,8.34]
[1765154108241,0.66,132.62,132.59,17.56002921]
[1765154109034,0.66,132.62,132.6,9.22002921]
[1765154109456,7.53852549,132.66,132.6,9.22002921]
[1765154109612,0.66,132.66,132.63,9.22002921]
[1765154109945,9.88002921,132.65,132.6,8.34]
[1765154110443,0.66,132.64,132.6,17.56002921]
[1765154110611,7.53977229,132.63,132.6,8.34]
[1765154111137,0.66,132.62,132.6,8.34]
[1765154111540,0.66,132.62,132.58,24.648864]
[1765154111727,0.66,132.62,132.58,33.86889321]
[1765154112335,0.66,132.62,132.59,9.22002921]
[1765154112643,8.20050519,132.62,132.58,33.86889321]
[1765154113139,0.66,132.61,132.59,9.22002921]
[1765154113747,0.66,132.61,132.58,33.86889321]
[1765154113918,0.66,132.61,132.59,9.22002921]
[1765154114843,0.66,132.61,132.58,33.86889321]
[1765154116110,0.66,132.61,132.59,9.22002921]
[1765154116419,7.5386355,132.65,132.6,17.56002921]
[1765154116636,0.66,132.62,132.6,17.56002921]
[1765154117127,7.53820978,132.66,132.6,25.10137737]
[1765154117329,0.66,132.63,132.61,9.22002921]
[1765154117643,0.66,132.65,132.62,17.56002921]
[1765154117829,9.88002921,132.66,132.62,8.34]
[1765154118225,0.66,132.65,132.61,9.22002921]
[1765154118430,0.66,132.65,132.61,18.26002921]
[1765154118622,0.66,132.65,132.61,17.56002921]
[1765154119044,8.19869699,132.65,132.61,17.56002921]
[1765154119230,0.66,132.65,132.61,25.80075624]
[1765154119436,0.66,132.65,132.62,9.22002921]
[1765154119632,8.19869479,132.65,132.6,9.22002921]
[1765154119939,9.22002921,132.64,132.59,9.22002921]
[1765154120121,0.66,132.63,132.6,9.22002921]
[1765154120442,0.66,132.63,132.6,16.76145912]
[1765154120619,0.66,132.63,132.61,9.22002921]
[1765154121626,8.21825924,132.66,132.62,9.92002921]
[1765154121944,0.68,132.65,132.63,9.22002921]
[1765154122443,0.68,132.65,132.64,9.22002921]
[1765154122672,0.1,132.67,132.64,25.52889321]
[1765154122943,0.68,132.66,132.63,9.22002921]
[1765154123135,0.68,132.66,132.63,17.56002921]
[1765154123344,0.68,132.66,132.65,9.22002921]
[1765154123646,0.68,132.66,132.63,17.56002921]
[1765154124020,9.22002921,132.64,132.58,22.64236386]
[1765154124222,0.68,132.63,132.58,9.22002921]
[1765154124522,0.68,132.64,132.61,9.22002921]
[1765154126022,8.21924405,132.64,132.6,15.88112508]
[1765154126222,0.68,132.63,132.6,15.88112508]
[1765154126556,0.68,132.63,132.61,7.54072356]
[1765154127950,0.68,132.64,132.61,7.54072356]
[1765154128755,0.68,132.64,132.6,15.88131037]
[1765154128957,0.68,132.64,132.6,25.80133958]
[1765154129464,0.1,132.67,132.64,16.308864]
[1765154129667,0.1,132.67,132.66,9.22002921]
[1765154129835,0.1,132.67,132.65,18.26002921]
[1765154130037,0.1,132.67,132.66,9.92002921]
[1765154130635,0.1,132.67,132.65,8.34]
[1765154130832,0.1,132.67,132.65,25.79836431]
[1765154131030,0.1,132.67,132.65,25.09836431]
[1765154131348,0.1,132.67,132.66,19.22997413]
[1765154132444,0.78,132.67,132.66,16.808864]
[1765154132650,0.78,132.67,132.66,0.5]
[1765154132858,0.1,132.67,132.64,16.758795]
[1765154133054,16.308864,132.73,132.64,16.758795]
[1765154133055,0.68,132.73,132.66,25.52889321]
[1765154133227,0.68,132.73,132.68,9.22002921]
[1765154133428,0.68,132.73,132.69,9.22002921]
[1765154133633,0.68,132.73,132.69,9.92002921]
[1765154134045,0.68,132.75,132.7,9.92002921]
[1765154134256,0.68,132.75,132.71,9.22002921]
[1765154134642,19.97729892,132.77,132.74,9.22002921]
[1765154134643,3.66843492,132.77,132.74,9.22002921]
[1765154134829,3.66843492,132.77,132.75,16.75298589]
[1765154135028,3.66843492,132.77,132.75,17.45298589]
[1765154135250,3.66843492,132.77,132.76,9.22002921]
[1765154135454,3.66843492,132.77,132.76,18.72997413]
[1765154136039,3.66843492,132.77,132.76,9.92002921]
[1765154136357,3.66843492,132.77,132.76,16.808864]
[1765154136543,3.66843492,132.77,132.76,35.53883813]
[1765154136738,3.66843492,132.77,132.76,43.0712274]
[1765154137264,0.1,132.81,132.76,99.56414694]
[1765154137469,0.1,132.81,132.8,9.22002921]
[1765154138173,0.1,132.81,132.8,8.80994492]
[1765154138371,0.1,132.81,132.8,18.02997413]
[1765154138546,0.1,132.81,132.8,26.38997413]
[1765154138747,0.1,132.81,132.8,33.92009461]
[1765154139258,0.1,132.81,132.8,17.58002921]
[1765154139459,0.78,132.81,132.79,16.308864]
[1765154139973,0.78,132.81,132.79,25.52889321]
[1765154140169,0.78,132.81,132.79,33.05942023]
[1765154140558,0.78,132.81,132.77,41.42031447]
[1765154141248,8.30963081,132.81,132.78,0.5]
[1765154141555,17.52966002,132.81,132.75,18.02997413]
[1765154141746,0.68,132.8,132.75,9.22002921]
[1765154141947,9.90002921,132.8,132.74,17.58002921]
[1765154142272,9.22002921,132.78,132.72,9.22002921]
[1765154142465,0.68,132.79,132.72,16.308864]
[1765154142663,9.90002921,132.79,132.72,16.34454186]
[1765154142978,7.5312547,132.78,132.73,16.75400961]
[1765154143160,8.2112547,132.78,132.73,16.75400961]
[1765154143470,0.68,132.77,132.73,16.75400961]
[1765154144075,0.68,132.77,132.73,9.22002921]
[1765154144276,0.68,132.77,132.72,41.8733455]
[1765154144446,0.68,132.77,132.72,9.22002921]
[1765154144643,0.68,132.77,132.71,25.11511006]
[1765154144870,8.21191365,132.77,132.72,9.22002921]
[1765154145073,0.68,132.77,132.73,7.53406828]
[1765154145258,0.68,132.77,132.74,9.22002921]
[1765154146072,8.21192397,132.77,132.72,16.75467215]
[1765154146370,8.21192397,132.77,132.73,9.22002921]
[1765154146673,8.21192397,132.77,132.72,7.53464294]
[1765154146674,0.68,132.76,132.72,16.75467215]
[1765154146976,8.21284748,132.76,132.71,41.42396302]
[1765154147471,8.21284748,132.76,132.69,9.22002921]
[1765154147472,0.68,132.75,132.69,9.22002921]
[1765154147655,0.68,132.75,132.7,9.22002921]
[1765154147855,9.22002921,132.74,132.68,8.36]
[1765154148072,9.22002921,132.73,132.66,9.22002921]
[1765154148261,9.22002921,132.73,132.66,16.75766252]
[1765154148457,0.68,132.72,132.68,16.75692681]
[1765154148884,0.68,132.72,132.67,9.22002921]
[1765154149178,7.53522718,132.71,132.66,7.53792172]
[1765154149356,16.75525639,132.71,132.65,16.75848058]
[1765154149552,0.68,132.7,132.65,9.22002921]
[1765154149766,0.68,132.7,132.64,7.53908596]
[1765154149767,0.68,132.7,132.64,16.75911517]
[1765154150469,9.22002921,132.69,132.63,15.89963406]
[1765154150669,9.22002921,132.69,132.63,25.11966327]
[1765154150992,9.91002921,132.68,132.62,16.76020059]
[1765154151371,8.22749905,132.67,132.62,16.76020059]
[1765154151883,0.69,132.66,132.62,16.76020059]
[1765154152180,9.22002921,132.7,132.64,9.22002921]
[1765154152360,17.58002921,132.7,132.64,9.22002921]
[1765154152687,0.69,132.69,132.64,9.22002921]
[1765154153182,8.22655818,132.69,132.64,7.53879741]
[1765154153386,0.69,132.69,132.65,9.22002921]
[1765154153578,0.69,132.68,132.65,9.22002921]
[1765154153983,7.53582421,132.7,132.65,9.22002921]
[1765154154183,0.69,132.71,132.66,9.22002921]
[1765154154371,0.69,132.7,132.66,9.22002921]
[1765154154677,0.69,132.7,132.67,9.22002921]
[1765154154882,0.69,132.72,132.68,9.22002921]
[1765154155053,0.69,132.72,132.67,9.22002921]
[1765154155253,0.69,132.72,132.68,16.75696017]
[1765154157768,0.69,132.72,132.69,9.22002921]
[1765154157965,0.69,132.72,132.68,16.75696017]
[1765154158291,0.69,132.72,132.69,9.22002921]
[1765154158462,0.69,132.72,132.68,16.75696017]
[1765154158784,18.83147369,132.76,132.68,16.75696017]
[1765154158987,0.68,132.73,132.7,9.22002921]
[1765154159185,0.68,132.73,132.68,26.37925836]
[1765154159186,0.68,132.73,132.71,9.22002921]
[1765154159392,0.68,132.75,132.71,16.75496559]
[1765154159562,0.68,132.74,132.71,16.75496559]
[1765154159763,0.68,132.74,132.71,7.53493638]
[1765154160989,17.43362518,132.74,132.68,9.22002921]
[1765154161171,17.43362518,132.74,132.67,24.668864]
[1765154161172,36.26743563,132.74,132.67,41.42633634]
[1765154161366,9.22002921,132.72,132.66,7.53797239]
[1765154161565,9.22002921,132.71,132.65,15.89842316]
[1765154161766,9.22002921,132.69,132.63,16.7595908]
[1765154162088,9.22002921,132.7,132.63,16.7595908]
[1765154162298,9.22002921,132.69,132.63,7.53969625]
[1765154162597,9.22002921,132.7,132.63,16.75972546]
[1765154162767,9.90002921,132.7,132.63,16.75972546]
[1765154162969,0.68,132.69,132.63,16.75972546]
[1765154163479,9.90002921,132.69,132.63,16.75972546]
[1765154163689,7.53693096,132.68,132.63,16.75972546]
[1765154163887,8.21693096,132.68,132.63,16.75972546]
[1765154164094,0.68,132.67,132.63,16.75972546]
[1765154164869,0.68,132.69,132.64,9.22002921]
[1765154165194,0.68,132.69,132.63,26.38912699]
[1765154165195,0.68,132.69,132.65,9.22002921]
[1765154166175,7.53559772,132.71,132.66,16.75809644]
[1765154166366,8.21559772,132.71,132.66,16.75809644]
[1765154166571,0.68,132.7,132.66,16.75809644]
[1765154166873,0.68,132.7,132.66,7.53806723]
[1765154167083,0.68,132.7,132.63,23.8482866]
[1765154167084,5.95084495,132.68,132.63,23.8482866]
[1765154167394,5.95084495,132.67,132.62,7.53989348]
[1765154167597,5.95084495,132.67,132.62,23.84875748]
[1765154167793,0.68,132.66,132.62,23.84875748]
[1765154168173,6.63084495,132.66,132.62,23.84875748]
[1765154168376,0.68,132.66,132.62,23.84875748]
[1765154168627,6.63084495,132.65,132.6,7.54129436]
[1765154168901,5.95084495,132.64,132.59,7.54186609]
[1765154169079,8.36,132.66,132.58,7.54250525]
[1765154169080,6.63084495,132.63,132.58,7.54250525]
[1765154169275,0.68,132.63,132.58,7.54250525]
[1765154169601,0.68,132.62,132.58,7.54250525]
[1765154169988,0.68,132.62,132.59,7.54195327]
[1765154170285,0.68,132.62,132.58,7.54261577]
[1765154170899,8.22043894,132.62,132.58,7.54261577]
[1765154171198,13.49128389,132.62,132.57,7.74306612]
[1765154171396,0.68,132.61,132.57,7.74306612]
[1765154171690,6.63084495,132.61,132.57,0.2]
[1765154171998,5.95084495,132.6,132.57,0.2]
[1765154172183,7.54261577,132.58,132.57,0.2]
[1765154172685,0.68,132.58,132.57,0.2]
[1765154174376,14.17346072,132.58,132.53,8.80994492]
[1765154174593,14.17346072,132.58,132.5,8.80994492]
[1765154174594,5.95084495,132.56,132.5,8.80994492]
[1765154174795,5.95084495,132.54,132.49,16.35728575]
[1765154175010,5.95084495,132.52,132.48,0.2]
[1765154175318,5.95084495,132.53,132.48,7.74802258]
[1765154175698,6.63084495,132.52,132.48,0.2]
[1765154175896,5.95084495,132.51,132.48,0.2]
[1765154176094,0.68,132.51,132.48,0.2]
[1765154176295,0.68,132.51,132.48,7.74813112]
[1765154176919,0.68,132.51,132.48,0.2]
[1765154177520,5.95084495,132.53,132.48,7.74816388]
[1765154177929,0.68,132.52,132.48,7.74816388]
[1765154178494,5.95084495,132.51,132.48,0.2]
[1765154178699,0.68,132.52,132.48,0.2]
[1765154178921,0.68,132.51,132.48,0.2]
[1765154180211,0.68,132.51,132.48,7.74826369]
[1765154180800,8.22670014,132.51,132.48,0.2]
[1765154181001,0.66,132.5,132.48,0.2]
[1765154181802,0.66,132.52,132.48,7.74828113]
[1765154182002,0.66,132.51,132.48,7.74828113]
[1765154183327,5.95084495,132.5,132.48,0.2]
[1765154183526,14.15760333,132.51,132.48,0.2]
[1765154183828,0.66,132.5,132.48,0.2]
[1765154185618,8.2073464,132.5,132.48,0.2]
[1765154186030,0.66,132.49,132.48,0.2]
[1765154186238,7.5467898,132.51,132.48,0.2]
[1765154186547,7.5454614,132.53,132.48,13.90897233]
[1765154186709,8.2054614,132.53,132.48,13.90897233]
[1765154186910,0.66,132.52,132.48,13.90897233]
[1765154187929,0.66,132.52,132.48,7.74812738]
[1765154187930,8.20609458,132.52,132.48,7.74812738]
[1765154188104,8.20608277,132.52,132.48,13.69897233]
[1765154188306,0.66,132.51,132.48,13.69897233]
[1765154190012,5.95084495,132.5,132.48,0.2]
[1765154190425,0.66,132.49,132.48,0.2]
[1765154190733,0.66,132.49,132.45,7.54981526]
[1765154190734,6.61084495,132.49,132.42,25.02981197]
[1765154190915,5.95084495,132.48,132.42,9.00994492]
[1765154191117,5.95084495,132.47,132.42,7.75137795]
[1765154191334,14.99084495,132.47,132.42,0.2]
[1765154191532,0.66,132.46,132.42,7.75163088]
[1765154191830,0.66,132.46,132.42,14.11247583]
[1765154192035,0.66,132.47,132.43,8.80994492]
[1765154192204,0.66,132.47,132.43,14.76078987]
[1765154192411,0.66,132.47,132.43,8.80994492]
[1765154192933,0.66,132.47,132.44,7.55058894]
[1765154193140,8.2090046,132.47,132.43,7.55105826]
[1765154193671,0.66,132.46,132.43,7.55105826]
[1765154194036,8.20968007,132.46,132.42,7.75171536]
[1765154194510,8.20968007,132.46,132.42,13.70256031]
[1765154194715,0.66,132.45,132.42,0.2]
[1765154194934,6.61084495,132.45,132.42,0.2]
[1765154195139,5.95084495,132.44,132.42,0.2]
[1765154195344,5.95084495,132.43,132.42,0.2]
[1765154195636,6.61084495,132.43,132.35,25.44920459]
[1765154195844,6.61084495,132.42,132.36,16.308864]